bitfinex/quotes_SOLUSD_20250106
["timestamp","ask_amount","ask_price","bid_price","bid_amount"]
[1736126703991,14.69025882,212.17,212.1,150.89025882]
[1736126704352,14.69025882,212.17,212.11,0.70700318]
[1736126704654,38.46714282,212.17,212.11,136.90700318]
[1736126704866,38.46714282,212.17,212.11,136.2]
[1736126705860,23.776884,212.17,212.11,150.89025882]
[1736126706084,38.46714282,212.17,212.11,136.2]
[1736126706283,23.776884,212.17,212.11,150.89025882]
[1736126706788,23.776884,212.17,212.12,6.0253]
[1736126708605,14.69025882,212.15,212.12,6.0253]
[1736126709191,23.776884,212.15,212.12,6.0253]
[1736126710577,14.69025882,212.13,212.12,136.2]
[1736126711699,38.46714282,212.13,212.12,136.2]
[1736126713501,23.776884,212.13,212.12,136.2]
[1736126713871,38.46714282,212.13,212.12,136.2]
[1736126714201,23.776884,212.12,212.06,142.3469]
[1736126714370,14.69025882,212.07,212.04,137.7286]
[1736126715083,14.69025882,212.08,212.04,137.7286]
[1736126716129,14.69025882,212.06,212.04,136.2]
[1736126716274,14.69025882,212.05,212.01,136.2]
[1736126716477,14.69025882,212.04,212.01,136.2]
[1736126716671,38.46714282,212.02,212.01,136.2]
[1736126716994,23.776884,212.02,212.01,136.2]
[1736126717303,14.69025882,212.05,212.01,136.2]
[1736126718571,23.776884,212.04,212.01,136.2]
[1736126718902,16.79025882,212.06,212.01,136.2]
[1736126719373,38.46714282,212.05,212.01,136.2]
[1736126719702,38.46714282,212.02,212.01,136.2]
[1736126719906,14.69025882,212.02,212.01,136.2]
[1736126722382,14.69025882,212.02,211.96,142.4973]
[1736126722580,14.69025882,212.0,211.96,142.4973]
[1736126722892,14.69025882,212.0,211.96,136.2]
[1736126723903,14.69025882,212.0,211.94,1.6208]
[1736126723904,14.69025882,211.98,211.94,136.2]
[1736126724218,23.776884,211.94,211.89,137.7182]
[1736126724377,23.776884,211.92,211.89,137.7182]
[1736126724814,14.69025882,211.94,211.89,137.7182]
[1736126725128,14.69025882,211.95,211.89,137.7182]
[1736126725412,2.1,211.99,211.92,150.89025882]
[1736126726015,18.89123,212.05,211.97,14.69025882]
[1736126726313,14.69025882,212.07,212.0,14.69025882]
[1736126726483,38.46714282,212.06,211.99,14.69025882]
[1736126726680,23.776884,212.02,211.97,136.2]
[1736126726993,14.69025882,211.98,211.97,136.2]
[1736126727308,23.776884,211.98,211.97,136.2]
[1736126728094,38.46714282,211.98,211.97,136.2]
[1736126728414,38.46714282,211.98,211.91,136.2]
[1736126728721,23.776884,211.95,211.91,136.2]
[1736126729593,23.776884,211.96,211.91,136.2]
[1736126730812,38.46714282,211.98,211.91,136.2]
[1736126731788,23.776884,211.96,211.91,136.2]
[1736126732486,38.46714282,211.98,211.91,136.2]
[1736126733709,38.46714282,211.98,211.92,14.69025882]
[1736126733710,23.776884,211.98,211.92,14.69025882]
[1736126734415,23.776884,211.98,211.92,150.89025882]
[1736126735591,23.776884,211.96,211.92,136.2]
[1736126736093,14.69025882,211.98,211.92,136.2]
[1736126736518,14.69025882,211.97,211.92,136.2]
[1736126737514,14.69025882,211.96,211.92,136.2]
[1736126737818,23.776884,211.92,211.89,136.2]
[1736126738009,23.776884,211.9,211.89,136.2]
[1736126738423,14.69025882,211.92,211.89,136.2]
[1736126739829,14.69025882,211.93,211.89,136.2]
[1736126740017,2.1,211.95,211.9,14.69025882]
[1736126740523,23.776884,211.94,211.9,14.69025882]
[1736126740908,23.776884,211.94,211.89,150.89025882]
[1736126741117,23.776884,211.94,211.89,136.2]
[1736126741629,23.776884,211.92,211.89,136.2]
[1736126742119,14.69025882,211.94,211.89,136.2]
[1736126742329,16.79025882,211.95,211.89,136.2]
[1736126742623,23.776884,211.94,211.89,136.2]
[1736126746430,23.776884,211.93,211.89,136.2]
[1736126747401,14.69025882,211.93,211.89,136.2]
[1736126748226,13.8935,211.98,211.89,136.2]
[1736126748227,23.776884,211.91,211.89,136.2]
[1736126748826,14.69025882,211.93,211.89,136.2]
[1736126749204,14.69025882,211.95,211.89,136.2]
[1736126749630,23.776884,211.94,211.89,150.89025882]
[1736126749937,38.46714282,211.95,211.89,136.2]
[1736126750144,23.776884,211.96,211.9,14.69025882]
[1736126750306,14.69025882,211.98,211.91,14.69025882]
[1736126750827,23.776884,211.97,211.91,14.69025882]
[1736126751027,14.69025882,211.98,211.91,14.69025882]
[1736126751028,9.41188035,211.98,211.91,9.41188035]
[1736126751406,1.5986,212.04,211.93,10.93258035]
[1736126751607,9.41188035,212.0,211.93,10.93258035]
[1736126751942,23.776884,211.99,211.93,147.13258035]
[1736126753043,23.776884,211.99,211.93,152.42377444]
[1736126754539,14.70307444,212.01,211.93,152.42377444]
[1736126755531,23.776884,212.0,211.95,14.70307444]
[1736126755838,38.47995844,212.0,211.93,152.42377444]
[1736126756010,23.776884,211.98,211.93,137.7207]
[1736126756417,38.47995844,211.98,211.93,137.7207]
[1736126758637,23.776884,211.96,211.93,137.7207]
[1736126759647,23.776884,211.94,211.88,150.90307444]
[1736126760137,14.70307444,211.96,211.89,14.70307444]
[1736126760315,23.776884,211.96,211.91,14.70307444]
[1736126760713,23.776884,211.97,211.9,0.70767537]
[1736126760935,13.5401856,212.1,211.96,14.70307444]
[1736126761110,13.5401856,212.1,212.02,14.70307444]
[1736126761111,14.70307444,212.09,212.02,14.70307444]
[1736126761312,8.36381547,212.11,211.99,20.0]
[1736126761507,14.70307444,212.1,212.03,14.70307444]
[1736126761738,23.06688991,212.11,212.03,14.70307444]
[1736126761922,8.36381547,212.11,212.05,14.70307444]
[1736126762120,14.70307444,212.13,212.05,14.70307444]
[1736126762445,14.70307444,212.12,212.05,14.70307444]
[1736126762655,14.70307444,212.12,212.06,0.70725181]
[1736126762844,14.70307444,212.14,212.06,151.61032625]
[1736126763152,14.70307444,212.14,212.06,150.90307444]
[1736126763649,38.47995844,212.13,212.06,150.90307444]
[1736126763810,14.70307444,212.07,212.04,142.7632]
[1736126764012,14.70307444,212.07,212.04,136.2]
[1736126764212,23.776884,212.05,211.99,157.08917444]
[1736126765039,14.70307444,212.05,211.99,142.3861]
[1736126765238,23.776884,212.03,211.99,142.3861]
[1736126765427,14.70307444,212.05,211.99,142.3861]
[1736126765627,23.776884,212.04,211.99,142.3861]
[1736126765831,14.70307444,212.02,211.99,142.3861]
[1736126766437,23.776884,212.01,211.99,142.3861]
[1736126766642,14.70307444,212.01,211.98,136.2]
[1736126767238,23.776884,211.99,211.94,142.3932]
[1736126767444,38.47995844,211.99,211.94,142.3932]
[1736126768938,23.776884,211.99,211.94,142.3932]
[1736126769146,23.776884,211.99,211.94,157.09627444]
[1736126769759,14.70307444,212.01,211.95,136.2]
[1736126770257,14.70307444,212.02,211.95,150.90307444]
[1736126770434,14.70307444,212.03,211.96,15.41054148]
[1736126770634,14.70307444,212.02,211.96,136.2]
[1736126771233,23.776884,212.01,211.96,136.2]
[1736126775266,38.47995844,212.01,211.96,136.2]
[1736126775462,23.776884,212.01,211.96,136.2]
[1736126777457,14.70307444,212.02,211.96,136.2]
[1736126779034,38.47995844,212.01,211.96,136.2]
[1736126779764,23.776884,211.98,211.96,136.2]
[1736126779965,14.70307444,211.98,211.94,136.2]
[1736126782679,23.776884,211.96,211.93,136.2]
[1736126784278,1.5455,212.03,211.89,142.478]
[1736126784279,23.776884,211.94,211.89,142.478]
[1736126784478,38.47995844,211.94,211.89,142.478]
[1736126784785,23.776884,211.92,211.89,136.2]
[1736126785577,14.70307444,211.94,211.89,136.2]
[1736126785752,2.16,211.99,211.9,15.41079713]
[1736126785753,14.70307444,211.97,211.9,15.41079713]
[1736126786165,23.776884,211.96,211.9,0.70772269]
[1736126787250,14.70307444,211.98,211.91,14.70307444]
[1736126787446,23.776884,211.92,211.9,136.2]
[1736126787761,23.776884,211.92,211.86,150.90307444]
[1736126788578,14.70307444,211.94,211.87,15.41087477]
[1736126789081,23.776884,211.93,211.87,15.41087477]
[1736126790476,14.70307444,211.95,211.89,14.70307444]
[1736126790777,14.70307444,211.95,211.9,0.70766704]
[1736126791213,23.776884,211.95,211.9,136.90766704]
[1736126791489,14.70307444,211.98,211.91,150.90307444]
[1736126791649,14.70307444,211.98,211.92,0.70762265]
[1736126791845,38.47995844,211.97,211.92,136.2]
[1736126792066,14.70307444,211.96,211.92,136.2]
[1736126792867,14.70307444,211.97,211.92,136.2]
[1736126793067,14.70307444,211.96,211.92,136.2]
[1736126794989,9.41322801,211.96,211.92,136.2]
[1736126795510,9.41322801,211.95,211.92,136.2]
[1736126795791,23.776884,211.92,211.84,142.396]
[1736126795977,9.41322801,211.91,211.85,0.70783467]
[1736126796177,9.41322801,211.89,211.85,136.2]
[1736126796380,43.776884,211.93,211.85,136.2]
[1736126796583,53.19011201,211.93,211.85,145.61322801]
[1736126796781,29.41322801,211.93,211.85,145.61322801]
[1736126797208,23.776884,211.92,211.85,145.61322801]
[1736126797370,9.41322801,211.91,211.85,136.2]
[1736126798110,9.41322801,211.89,211.85,136.2]
[1736126798772,9.41322801,211.9,211.85,136.2]
[1736126798976,23.776884,211.89,211.85,136.2]
[1736126800469,9.41322801,211.92,211.86,0.70791141]
[1736126800883,9.41322801,211.92,211.85,145.61322801]
[1736126801915,23.776884,211.91,211.85,145.61322801]
[1736126803119,23.776884,211.91,211.85,136.2]
[1736126803289,20.0,211.94,211.85,136.2]
[1736126803606,2.16,211.96,211.86,10.121044]
[1736126803607,9.41322801,211.93,211.86,10.121044]
[1736126805373,23.776884,211.95,211.88,9.41322801]
[1736126805374,9.41322801,211.95,211.88,9.41322801]
[1736126805578,9.41322801,211.95,211.89,136.90769786]
[1736126805805,9.41322801,211.95,211.89,136.2]
[1736126806008,33.19011201,211.96,211.89,145.61322801]
[1736126806706,9.41322801,211.95,211.89,136.2]
[1736126807508,9.41322801,211.94,211.89,136.2]
[1736126808606,9.41322801,211.93,211.89,136.2]
[1736126809216,9.41322801,211.91,211.89,136.2]
[1736126812914,9.41322801,211.92,211.89,136.2]
[1736126815284,20.0,211.97,211.89,136.2]
[1736126815492,9.41322801,211.94,211.89,136.2]
[1736126815812,9.41322801,211.92,211.89,136.2]
[1736126816520,9.41322801,211.93,211.89,136.2]
[1736126818016,9.41322801,211.92,211.89,136.2]
[1736126818306,20.0,211.97,211.89,136.2]
[1736126818611,9.41322801,211.93,211.89,136.2]
[1736126818806,9.41322801,211.92,211.89,136.2]
[1736126820423,23.776884,211.96,211.89,136.2]
[1736126820593,23.776884,211.96,211.9,0.70771858]
[1736126820800,9.41322801,211.95,211.9,0.70771858]
[1736126821293,23.776884,211.94,211.9,136.90771858]
[1736126821499,23.776884,211.94,211.9,136.2]
[1736126821715,33.19011201,211.94,211.9,136.2]
[1736126821899,9.41322801,211.94,211.9,136.2]
[1736126822593,20.0,211.97,211.9,136.2]
[1736126822594,9.41322801,211.93,211.9,136.2]
[1736126822995,33.19011201,211.91,211.9,136.2]
[1736126825530,9.41322801,211.92,211.9,136.2]
[1736126827002,33.19011201,211.91,211.9,136.2]
[1736126827196,33.19011201,211.91,211.84,142.396]
[1736126827393,23.776884,211.89,211.84,136.2]
[1736126827701,9.41322801,211.85,211.84,136.2]
[1736126828199,9.41322801,211.86,211.84,136.2]
[1736126829225,9.41322801,211.85,211.84,136.2]
[1736126830091,9.41322801,211.86,211.84,136.2]
[1736126830324,23.776884,211.93,211.84,136.2]
[1736126830501,9.41322801,211.87,211.84,136.2]
[1736126832010,9.41322801,211.85,211.84,136.2]
[1736126833013,9.41322801,211.86,211.84,136.2]
[1736126833413,23.776884,211.89,211.84,136.2]
[1736126833634,9.41322801,211.86,211.84,136.2]
[1736126834938,9.41322801,211.88,211.84,136.2]
[1736126835313,20.0,211.91,211.84,136.2]
[1736126835646,9.41322801,211.87,211.84,136.2]
[1736126836215,9.41322801,211.86,211.84,136.2]
[1736126838332,20.0,211.91,211.84,136.2]
[1736126838644,9.41322801,211.88,211.84,136.2]
[1736126839319,6.4262,211.97,211.85,0.70787165]
[1736126839520,9.41322801,211.9,211.85,0.70787165]
[1736126840921,9.41322801,211.89,211.85,0.70787165]
[1736126841122,9.41322801,211.88,211.85,136.90787165]
[1736126841343,9.41322801,211.89,211.85,136.2]
[1736126844220,9.41322801,211.9,211.86,0.70784866]
[1736126844416,29.41322801,211.91,211.86,0.70784866]
[1736126844650,20.0,211.91,211.86,0.70784866]
[1736126845245,2.16,211.96,211.86,136.90784866]
[1736126845449,9.41322801,211.95,211.88,151.66942801]
[1736126845624,9.41322801,211.95,211.89,0.70763723]
[1736126845822,29.41322801,211.96,211.89,136.90763723]
[1736126846032,29.41322801,211.96,211.89,136.2]
[1736126846226,9.41322801,211.95,211.9,0.70767982]
[1736126847244,9.41322801,211.96,211.9,0.70767982]
[1736126848352,23.776884,211.96,211.9,0.70767982]
[1736126848941,23.776884,211.96,211.9,136.90767982]
[1736126849128,23.776884,211.96,211.9,136.2]
[1736126849347,23.776884,211.96,211.91,0.70765007]
[1736126849540,20.0,211.98,211.91,0.70765007]
[1736126849731,29.41322801,211.98,211.91,0.70765007]
[1736126849926,9.41322801,211.97,211.91,0.70765007]
[1736126850419,9.41322801,211.98,211.91,136.90765007]
[1736126850618,9.41322801,211.98,211.91,136.2]
[1736126850935,9.41322801,211.95,211.91,136.2]
[1736126851141,9.41322801,211.94,211.91,136.2]
[1736126851657,23.776884,212.02,211.91,136.2]
[1736126851658,9.41322801,211.95,211.91,136.2]
[1736126852637,9.41322801,211.96,211.91,136.2]
[1736126853031,9.41322801,211.96,211.92,0.70763237]
[1736126853855,9.41322801,211.96,211.91,136.2]
[1736126854357,20.0,212.0,211.92,0.70762194]
[1736126854654,9.41322801,211.98,211.92,136.90762194]
[1736126854953,9.41322801,211.98,211.92,136.2]
[1736126855256,9.41322801,211.98,211.93,0.70752981]
[1736126855447,9.41322801,211.98,211.94,1.6231]
[1736126858437,9.41322801,212.0,211.95,136.90751958]
[1736126858645,9.41322801,212.0,211.95,136.2]
[1736126859756,9.41322801,212.0,211.96,0.70746186]
[1736126860165,9.41322801,212.0,211.96,136.90746186]
[1736126860327,20.0,212.04,211.96,136.2]
[1736126860530,9.41322801,212.02,211.97,0.70739966]
[1736126860858,9.41322801,212.01,211.97,0.70739966]
[1736126861349,9.41322801,212.02,211.97,0.70739966]
[1736126863963,9.41322801,212.01,211.97,0.70739966]
[1736126865358,9.41322801,212.0,211.97,136.90739966]
[1736126865560,9.41322801,212.0,211.97,136.2]
[1736126866157,9.41322801,211.99,211.97,136.2]
[1736126867067,33.19011201,211.98,211.97,136.2]
[1736126867554,23.776884,211.98,211.97,136.2]
[1736126867761,33.19011201,211.98,211.97,136.2]
[1736126868055,11.7919,212.01,211.97,136.2]
[1736126868357,29.41322801,211.98,211.97,136.2]
[1736126868567,53.19011201,211.98,211.97,136.2]
[1736126869765,33.19011201,211.98,211.97,136.2]
[1736126870371,20.0,212.05,211.9,9.41322801]
[1736126870546,9.41322801,211.98,211.91,10.12074757]
[1736126873358,20.0,212.01,211.92,9.41322801]
[1736126873549,9.41322801,212.01,211.94,145.61322801]
[1736126873774,9.41322801,212.01,211.95,0.70743757]
[1736126873948,9.41322801,212.03,211.95,146.32066558]
[1736126874166,9.41322801,212.01,211.95,136.2]
[1736126875266,9.41322801,212.01,211.96,0.70742577]
[1736126875466,20.0,212.03,211.96,0.70742577]
[1736126875634,9.41322801,212.02,211.96,0.70742577]
[1736126876353,11.7879,212.09,211.97,1.5335]
[1736126876555,9.41322801,212.04,211.98,0.7073465]
[1736126876955,2.14,212.09,211.98,136.9073465]
[1736126877265,9.41322801,212.06,211.98,145.61322801]
[1736126877642,9.41322801,212.05,211.98,145.61322801]
[1736126878277,9.41322801,212.05,211.99,0.70730989]
[1736126880347,20.0,212.1,212.0,9.41322801]
[1736126880555,9.41322801,212.09,212.02,9.41322801]
[1736126880777,9.41322801,212.09,212.03,0.70717411]
[1736126881385,9.41322801,212.1,212.03,10.12040212]
[1736126881552,2.14,212.14,212.04,145.61322801]
[1736126881750,9.41322801,212.11,212.05,136.90711303]
[1736126881945,9.41322801,212.11,212.05,136.2]
[1736126882780,43.776884,212.13,212.06,7.8803]
[1736126882945,9.41322801,212.1,212.06,7.8803]
[1736126883448,9.41322801,212.11,212.06,8.58743019]
[1736126885108,9.41322801,212.13,212.06,18.0006582]
[1736126886385,11.7811,212.21,212.08,9.41322801]
[1736126886570,2.14,212.19,212.09,10.12018349]
[1736126886773,9.41322801,212.16,212.09,10.12018349]
[1736126888462,20.0,212.17,212.09,0.70695548]
[1736126888663,9.41322801,212.14,212.09,136.90695548]
[1736126888871,9.41322801,212.14,212.09,136.2]
[1736126889866,9.41322801,212.14,212.1,0.70697457]
[1736126890389,20.0,212.18,212.1,136.90697457]
[1736126890592,9.41322801,212.15,212.1,136.2]
[1736126890768,9.41322801,212.15,212.11,0.70692313]
[1736126891785,9.41322801,212.14,212.11,0.70692313]
[1736126892259,9.41322801,212.12,212.1,136.2]
[1736126892467,9.41322801,212.11,212.1,136.2]
[1736126892677,9.41322801,212.11,212.06,137.7899]
[1736126892895,9.41322801,212.11,212.06,136.2]
[1736126893084,9.41322801,212.07,212.06,136.2]
[1736126895398,23.776884,212.12,212.06,136.2]
[1736126895706,9.41322801,212.09,212.06,136.2]
[1736126896004,14.64605184,212.23,212.09,7.7629]
[1736126896337,14.64605184,212.23,212.12,9.41322801]
[1736126896474,9.41322801,212.2,212.13,0.70682736]
[1736126896808,7.32302592,212.24,212.14,9.41322801]
[1736126897109,9.41322801,212.22,212.15,10.11995661]
[1736126897892,9.41322801,212.22,212.15,0.7067286]
[1736126898375,9.41322801,212.21,212.15,0.7067286]
[1736126898695,9.41322801,212.21,212.16,136.90678497]
[1736126898871,9.41322801,212.21,212.16,136.2]
[1736126899068,20.0,212.27,212.17,136.90675494]
[1736126899275,9.41322801,212.21,212.17,136.2]
[1736126899480,9.41322801,212.22,212.17,136.2]
[1736126900679,23.776884,212.29,212.19,7.7797]
[1736126900979,9.41322801,212.26,212.2,136.90661845]
[1736126901200,9.41322801,212.26,212.2,136.2]
[1736126901414,9.41322801,212.27,212.2,136.2]
[1736126902080,9.41322801,212.26,212.2,136.2]
[1736126902413,9.41322801,212.26,212.21,0.70663657]
[1736126903092,14.66827214,212.26,212.21,0.70663657]
[1736126905107,23.5482,212.34,212.21,0.70663657]
[1736126905108,14.66827214,212.28,212.21,151.57490871]
[1736126905309,14.66827214,212.28,212.21,150.86827214]
[1736126905485,14.66827214,212.31,212.24,14.66827214]
[1736126905679,14.66827214,212.31,212.25,0.70641285]
[1736126906681,14.66827214,212.3,212.25,136.90641285]
[1736126906881,14.66827214,212.28,212.25,136.2]
[1736126907086,14.66827214,212.27,212.25,136.2]
[1736126908586,14.66827214,212.26,212.25,136.2]
[1736126910420,20.0,212.23,212.19,136.2]
[1736126910604,14.66827214,212.2,212.14,137.7483]
[1736126910807,14.66827214,212.16,212.14,137.7483]
[1736126911025,14.66827214,212.17,212.14,137.7483]
[1736126911494,14.66827214,212.18,212.14,137.7483]
[1736126912118,14.66827214,212.18,212.15,0.70686098]
[1736126912416,14.66827214,212.19,212.15,0.70686098]
[1736126914011,14.66827214,212.19,212.15,136.90686098]
[1736126914215,14.66827214,212.19,212.15,136.2]
[1736126914418,34.66827214,212.23,212.16,15.37513542]
[1736126914723,34.66827214,212.23,212.17,14.66827214]
[1736126914895,34.66827214,212.23,212.18,0.70674019]
[1736126915697,14.66827214,212.24,212.18,0.70674019]
[1736126916432,14.66827214,212.27,212.2,14.66827214]
[1736126916726,14.66827214,212.27,212.21,0.70660102]
[1736126917709,14.66827214,212.26,212.21,0.70660102]
[1736126918702,2.2,212.28,212.2,136.2]
[1736126918703,14.66827214,212.23,212.2,136.2]
[1736126919932,14.66827214,212.22,212.2,136.2]
[1736126920527,14.66827214,212.24,212.2,136.2]
[1736126921815,14.66827214,212.23,212.2,136.2]
[1736126922009,14.66827214,212.22,212.2,136.2]
[1736126922704,14.66827214,212.23,212.2,136.2]
[1736126922904,13.977,212.28,212.2,136.2]
[1736126923123,20.0,212.25,212.21,0.70676637]
[1736126923713,14.66827214,212.26,212.21,0.70676637]
[1736126926235,14.66827214,212.27,212.21,136.90676637]
[1736126926414,14.66827214,212.29,212.22,14.66827214]
[1736126926616,14.66827214,212.29,212.23,0.70653444]
[1736126927026,20.0,212.28,212.23,0.70653444]
[1736126927830,9.38450811,212.27,212.23,0.70653444]
[1736126928028,9.38450811,212.27,212.22,0.70660012]
[1736126929031,9.38450811,212.25,212.21,136.2]
[1736126929229,9.38450811,212.24,212.21,136.2]
[1736126929739,9.38450811,212.22,212.21,136.2]
[1736126929937,9.38450811,212.22,212.15,136.2]
[1736126930138,9.38450811,212.21,212.16,136.90680775]
[1736126930453,9.38450811,212.23,212.17,9.38450811]
[1736126930745,9.38450811,212.23,212.18,0.70670949]
[1736126931255,9.38450811,212.22,212.18,0.70670949]
[1736126931541,9.38450811,212.22,212.17,0.70676866]
[1736126933438,13.9781,212.26,212.17,0.70676866]
[1736126933744,9.38450811,212.23,212.17,0.70676866]
[1736126934346,9.38450811,212.22,212.17,0.70676866]
[1736126935019,9.38450811,212.22,212.17,136.90676866]
[1736126935217,9.38450811,212.22,212.17,136.2]
[1736126935453,13.9781,212.26,212.17,136.2]
[1736126935661,9.38450811,212.22,212.17,136.2]
[1736126936854,9.38450811,212.22,212.18,0.70672151]
[1736126938255,13.9781,212.26,212.18,136.2]
[1736126938256,9.38450811,212.19,212.18,136.2]
[1736126938827,33.16139211,212.19,212.18,136.2]
[1736126939527,9.38450811,212.19,212.13,142.7689]
[1736126939835,9.38450811,212.18,212.13,142.7689]
[1736126940259,9.38450811,212.19,212.14,0.70689253]
[1736126940440,11.7781,212.26,212.16,9.38450811]
[1736126940761,9.38450811,212.23,212.17,10.09122957]
[1736126941058,29.38450811,212.23,212.17,10.09122957]
[1736126942355,20.0,212.23,212.17,10.09122957]
[1736126942729,29.38450811,212.23,212.17,0.70672146]
[1736126944044,29.38450811,212.23,212.17,136.90672146]
[1736126944343,29.38450811,212.23,212.17,136.2]
[1736126944747,9.38450811,212.22,212.17,136.2]
[1736126945455,9.38450811,212.24,212.18,136.90674576]
[1736126945759,9.38450811,212.24,212.18,136.2]
[1736126945961,11.7781,212.26,212.19,136.90670012]
[1736126946145,9.38450811,212.25,212.19,136.2]
[1736126946340,11.776,212.3,212.2,136.906681]
[1736126946653,9.38450811,212.27,212.2,145.58450811]
[1736126947029,9.38450811,212.28,212.2,145.58450811]
[1736126947251,9.38450811,212.27,212.2,145.58450811]
[1736126947758,9.38450811,212.26,212.21,0.70661115]
[1736126948353,11.776,212.3,212.21,136.90661115]
[1736126948552,9.38450811,212.27,212.21,136.2]
[1736126948887,9.38450811,212.28,212.22,0.70655365]
[1736126949039,7.32302592,212.32,212.22,143.46735365]
[1736126949245,7.32302592,212.32,212.24,9.38450811]
[1736126949544,9.38450811,212.31,212.25,136.90645709]
[1736126949750,9.38450811,212.31,212.25,136.2]
[1736126949952,9.38450811,212.31,212.26,0.70645023]
[1736126950444,9.38450811,212.29,212.25,136.2]
[1736126950644,9.38450811,212.28,212.25,136.2]
[1736126951344,20.0,212.3,212.25,136.2]
[1736126951855,9.38450811,212.26,212.25,136.2]
[1736126955467,9.38450811,212.29,212.25,136.2]
[1736126955641,29.38450811,212.3,212.25,136.2]
[1736126957065,9.38450811,212.28,212.25,136.2]
[1736126958870,9.38450811,212.29,212.25,136.2]
[1736126959363,9.38450811,212.28,212.25,136.2]
[1736126960366,20.0,212.3,212.25,136.2]
[1736126960567,9.38450811,212.29,212.25,136.2]
[1736126960972,11.7741,212.33,212.25,136.2]
[1736126961154,9.38450811,212.28,212.25,136.2]
[1736126961342,23.776884,212.32,212.25,136.2]
[1736126961767,9.38450811,212.28,212.25,136.2]
[1736126962358,9.38450811,212.26,212.25,136.2]
[1736126964472,33.16139211,212.26,212.25,136.2]
[1736126964971,33.16139211,212.26,212.17,142.6729]
[1736126965163,9.38450811,212.22,212.18,0.70671737]
[1736126965372,20.0,212.27,212.18,0.70671737]
[1736126965543,9.38450811,212.24,212.18,0.70671737]
[1736126966571,2.14,212.28,212.18,0.70671737]
[1736126966778,9.38450811,212.26,212.19,9.38450811]
[1736126967072,9.38450811,212.26,212.2,0.70660754]
[1736126967369,9.38450811,212.27,212.2,146.29111565]
[1736126967545,9.38450811,212.27,212.2,145.58450811]
[1736126968559,9.38450811,212.27,212.21,0.70655648]
[1736126970253,20.0,212.29,212.22,145.58450811]
[1736126970453,9.38450811,212.3,212.23,146.29101188]
[1736126970659,9.38450811,212.3,212.23,145.58450811]
[1736126970889,9.38450811,212.25,212.23,136.2]
[1736126971050,9.38450811,212.24,212.23,136.2]
[1736126971249,20.0,212.3,212.23,136.2]
[1736126971453,9.38450811,212.27,212.23,136.2]
[1736126973473,20.0,212.3,212.23,136.2]
[1736126973785,9.38450811,212.27,212.23,136.2]
[1736126974484,9.38450811,212.25,212.23,136.2]
[1736126975178,9.38450811,212.26,212.23,136.2]
[1736126975361,20.0,212.33,212.23,137.7848]
[1736126975672,9.38450811,212.28,212.24,0.70652102]
[1736126977655,9.38450811,212.27,212.24,0.70652102]
[1736126977856,9.38450811,212.25,212.24,136.2]
[1736126980379,11.7768,212.29,212.24,136.2]
[1736126980679,9.38450811,212.25,212.24,136.2]
[1736126980861,20.0,212.22,212.18,137.8332]
[1736126981066,9.38450811,212.21,212.18,137.8332]
[1736126981786,9.38450811,212.21,212.18,136.2]
[1736126982985,23.776884,212.25,212.18,136.2]
[1736126982986,9.38450811,212.19,212.18,136.2]
[1736126983487,20.0,212.25,212.18,136.2]
[1736126983664,9.38450811,212.22,212.18,136.2]
[1736126984266,9.38450811,212.23,212.19,0.70669994]
[1736126984482,9.38450811,212.24,212.19,0.70669994]
[1736126984785,29.38450811,212.25,212.19,0.70669994]
[1736126985478,9.38450811,212.27,212.2,9.38450811]
[1736126985668,9.38450811,212.27,212.21,0.70656149]
[1736126986781,9.38450811,212.26,212.21,0.70656149]
[1736126986979,14.66841271,212.26,212.21,0.70656149]
[1736126988973,14.66841271,212.25,212.21,136.90656149]
[1736126989172,14.66841271,212.25,212.21,136.2]
[1736126989583,14.66841271,212.24,212.21,136.2]
[1736126989790,23.776884,212.29,212.21,136.2]
[1736126989791,14.66841271,212.22,212.21,136.2]
[1736126990501,14.66841271,212.24,212.21,136.2]
[1736126991377,14.66841271,212.25,212.21,136.2]
[1736126991583,14.66841271,212.26,212.22,0.70661562]